bitfinex/quotes_BTCUSD_20230108
["timestamp","ask_amount","ask_price","bid_price","bid_amount"]
[1673215418431,0.56726245,16972.0,16971.0,3.31486666]
[1673215419294,0.56726245,16972.0,16971.0,3.68280866]
[1673215420063,0.55726245,16972.0,16971.0,3.68280866]
[1673215422325,0.04674071,16972.0,16971.0,3.68280866]
[1673215422847,0.04674071,16972.0,16971.0,4.27204866]
[1673215423563,0.04674071,16972.0,16971.0,4.77100029]
[1673215424069,0.04662609,16972.0,16971.0,4.77100029]
[1673215430563,0.04662609,16972.0,16971.0,4.86128866]
[1673215430831,0.04662609,16972.0,16971.0,6.1649049]
[1673215432333,0.04662609,16972.0,16971.0,5.50276866]
[1673215433090,0.04662609,16972.0,16971.0,6.27628895]
[1673215433346,0.04662609,16972.0,16971.0,6.09945699]
[1673215437435,0.04662609,16972.0,16971.0,5.50276866]
[1673215437726,0.04662609,16972.0,16971.0,6.18305255]
[1673215437985,0.04662609,16972.0,16971.0,6.35988451]
[1673215440396,0.02,16972.0,16971.0,6.35988451]
[1673215440930,0.02,16972.0,16971.0,6.65988451]
[1673215441141,0.02,16972.0,16971.0,5.67960062]
[1673215441392,0.02,16972.0,16971.0,7.13746425]
[1673215441645,0.04970874,16972.0,16971.0,6.96366425]
[1673215442910,0.04970874,16972.0,16971.0,7.14088484]
[1673215443410,0.04970874,16972.0,16971.0,6.9641739]
[1673215443933,0.02,16972.0,16971.0,7.41420692]
[1673215444061,0.02,16972.0,16971.0,7.02729221]
[1673215444235,0.02,16972.0,16971.0,6.85359221]
[1673215444390,0.0475507,16972.0,16971.0,6.85359221]
[1673215445593,0.0475507,16972.0,16971.0,6.85363221]
[1673215446764,0.0475507,16972.0,16971.0,6.89429365]
[1673215447014,0.0475507,16972.0,16971.0,6.71767193]
[1673215447270,0.0475507,16972.0,16971.0,6.71762618]
[1673215447529,0.0475507,16972.0,16971.0,5.73556954]
[1673215448288,0.0475507,16972.0,16971.0,6.00038905]
[1673215448598,0.0475507,16972.0,16971.0,5.73556954]
[1673215448853,0.0475507,16972.0,16971.0,6.71618434]
[1673215449104,0.0475507,16972.0,16971.0,6.71618126]
[1673215449865,0.0475507,16972.0,16971.0,6.00038905]
[1673215450134,0.0475507,16972.0,16971.0,5.73556954]
[1673215450362,0.0475507,16972.0,16971.0,6.00038905]
[1673215450841,0.0475507,16972.0,16971.0,6.71615981]
[1673215451577,0.0475507,16972.0,16971.0,6.00038905]
[1673215452662,0.02,16972.0,16971.0,6.00038905]
[1673215452899,0.02,16972.0,16971.0,7.0158492]
[1673215454686,0.04754895,16972.0,16971.0,7.0158492]
[1673215455389,0.04754895,16972.0,16971.0,6.73371379]
[1673215455676,0.04754895,16972.0,16971.0,6.38056776]
[1673215455934,0.04754895,16972.0,16971.0,6.73371379]
[1673215456442,0.04754895,16972.0,16971.0,7.08199075]
[1673215456690,0.04754895,16972.0,16971.0,7.2585187]
[1673215456976,0.04754895,16972.0,16971.0,6.73098948]
[1673215457238,0.04743336,16972.0,16971.0,7.46710729]
[1673215457519,0.04743336,16972.0,16971.0,7.17261208]
[1673215458281,0.04743336,16972.0,16971.0,6.73107906]
[1673215459331,0.04743336,16972.0,16971.0,6.55727906]
[1673215461466,0.04743336,16972.0,16971.0,6.73403819]
[1673215463582,0.01988441,16972.0,16971.0,6.73403819]
[1673215463926,0.01988441,16972.0,16971.0,7.02863819]
[1673215464736,0.01988441,16972.0,16971.0,6.32863819]
[1673215465449,0.04494952,16972.0,16971.0,6.32863819]
[1673215465717,0.04494952,16972.0,16971.0,7.02863819]
[1673215465963,0.04494952,16972.0,16971.0,6.67549216]
[1673215466220,0.04494952,16972.0,16971.0,6.50239216]
[1673215466451,0.04494952,16972.0,16971.0,6.85563135]
[1673215466932,0.04494952,16972.0,16971.0,6.50239216]
[1673215467196,0.04494952,16972.0,16971.0,6.85563304]
[1673215467442,0.01988441,16972.0,16971.0,6.50239216]
[1673215467904,0.01988441,16972.0,16971.0,6.20779216]
[1673215468164,0.01988441,16972.0,16971.0,6.67619216]
[1673215468407,0.0024014,16976.0,16972.0,0.51944408]
[1673215468661,0.0024014,16976.0,16974.0,0.35044453]
[1673215468909,0.0024014,16976.0,16975.0,1.99036925]
[1673215469432,1.06292198,16976.0,16975.0,1.546144]
[1673215469676,1.06292198,16976.0,16975.0,1.878202]
[1673215470464,1.06292198,16976.0,16975.0,2.018202]
[1673215471216,1.06292198,16976.0,16975.0,2.60754607]
[1673215471970,0.88642017,16976.0,16975.0,2.97548807]
[1673215472212,0.88642017,16976.0,16975.0,3.41975853]
[1673215472975,0.0024014,16976.0,16975.0,3.41975853]
[1673215473484,0.88631744,16976.0,16975.0,3.41975853]
[1673215473767,0.88631002,16976.0,16975.0,3.05181652]
[1673215474022,0.88631002,16976.0,16975.0,3.05181649]
[1673215474279,0.0024014,16976.0,16975.0,3.05181649]
[1673215474517,0.88628486,16976.0,16975.0,3.05181649]
[1673215475296,0.88628486,16976.0,16975.0,3.41975849]
[1673215476637,0.88628486,16976.0,16975.0,2.97548807]
[1673215476881,0.88628486,16976.0,16975.0,2.60754607]
[1673215477123,1.06278667,16976.0,16975.0,2.60754607]
[1673215477979,1.06278667,16976.0,16975.0,2.97548807]
[1673215478776,1.06278667,16976.0,16975.0,2.27548807]
[1673215479602,1.06278667,16976.0,16975.0,1.90754607]
[1673215479825,1.06278667,16976.0,16975.0,2.018202]
[1673215479826,1.32751988,16976.0,16975.0,2.018202]
[1673215480097,1.50399815,16976.0,16975.0,1.429101]
[1673215481089,1.49399815,16976.0,16975.0,1.429101]
[1673215481343,1.49399815,16976.0,16975.0,0.84]
[1673215482609,1.49399815,16976.0,16975.0,1.429101]
[1673215485959,1.67054843,16976.0,16975.0,1.429101]
[1673215486216,1.31756835,16976.0,16975.0,1.429101]
[1673215488594,1.67054843,16976.0,16975.0,1.429101]
[1673215488830,1.67059955,16976.0,16975.0,1.429101]
[1673215489314,1.49399815,16976.0,16975.0,1.429101]
[1673215489824,1.49399815,16976.0,16975.0,0.729101]
[1673215490077,1.67061689,16976.0,16975.0,0.729101]
[1673215490864,1.67061689,16976.0,16975.0,1.429101]
[1673215491128,1.31763681,16976.0,16975.0,1.429101]
[1673215491378,1.67061689,16976.0,16975.0,1.429101]
[1673215491630,1.67060799,16976.0,16975.0,1.429101]
[1673215491873,1.31762791,16976.0,16975.0,1.429101]
[1673215492883,1.31762791,16976.0,16975.0,1.94027052]
[1673215494357,1.31762791,16976.0,16975.0,2.3845863]
[1673215494611,1.07567228,16976.0,16975.0,2.9736873]
[1673215497105,1.07567228,16976.0,16975.0,2.52937152]
[1673215497355,1.34040549,16976.0,16975.0,2.52937152]
[1673215500247,1.34040549,16976.0,16975.0,2.52929428]
[1673215500489,1.34040549,16976.0,16975.0,1.82929428]
[1673215501301,1.34040549,16976.0,16975.0,1.82401928]
[1673215501550,1.34040549,16976.0,16975.0,2.52401928]
[1673215501797,1.69338557,16976.0,16975.0,2.52401928]
[1673215502246,1.51677573,16976.0,16975.0,2.52401928]
[1673215502864,1.3404542,16976.0,16975.0,2.52401928]
[1673215505148,1.3404542,16976.0,16975.0,1.93491828]
[1673215505408,1.69343428,16976.0,16975.0,1.93491828]
[1673215505684,1.51677573,16976.0,16975.0,1.93491828]
[1673215507995,1.69344549,16976.0,16975.0,1.93491828]
[1673215508254,1.51677573,16976.0,16975.0,1.93491828]
[1673215509016,1.69325844,16976.0,16975.0,1.93491828]
[1673215509261,1.85307736,16976.0,16975.0,1.34581728]
[1673215509531,1.69325844,16976.0,16975.0,1.34581728]
[1673215510035,1.95826071,16976.0,16975.0,1.34581728]
[1673215510283,1.51704479,16976.0,16975.0,1.34581728]
[1673215510537,1.95826071,16976.0,16975.0,1.34581728]
[1673215510795,1.51704479,16976.0,16975.0,1.34581728]
[1673215514688,1.49426721,16976.0,16975.0,1.34581728]
[1673215520681,1.93548313,16976.0,16975.0,1.34581728]
[1673215520933,1.49426721,16976.0,16975.0,1.34581728]
[1673215521653,1.83006421,16976.0,16975.0,1.34581728]
[1673215521903,1.93558439,16976.0,16975.0,1.34581728]
[1673215522154,1.49436847,16976.0,16975.0,1.34581728]
[1673215523425,1.67048086,16976.0,16975.0,1.34581728]
[1673215523677,1.82997725,16976.0,16975.0,1.34581728]
[1673215524433,1.67048086,16976.0,16975.0,1.34581728]
[1673215525433,1.67048086,16976.0,16975.0,0.64581728]
[1673215525691,1.69552714,16976.0,16975.0,0.64581728]
[1673215526205,1.68552714,16976.0,16975.0,0.64581728]
[1673215526462,1.68552714,16976.0,16975.0,1.34581728]
[1673215526736,1.95063842,16976.0,16975.0,1.34581728]
[1673215526949,1.95064149,16976.0,16975.0,1.34581728]
[1673215527202,1.68552714,16976.0,16975.0,1.34581728]
[1673215527444,1.84464856,16976.0,16975.0,1.34581728]
[1673215529197,1.50941678,16976.0,16975.0,1.34581728]
[1673215532473,1.84181257,16976.0,16975.0,0.13464776]
[1673215533479,1.84181257,16976.0,16975.0,0.83464776]
[1673215534522,2.12764237,16976.0,16975.0,0.83464776]
[1673215535264,1.68642645,16976.0,16975.0,0.83464776]
[1673215536019,2.12821131,16976.0,16975.0,0.83464776]
[1673215539571,1.68642645,16976.0,16975.0,0.83464776]
[1673215540579,2.12811791,16976.0,16975.0,0.83464776]
[1673215546954,2.48143407,16976.0,16975.0,0.83464776]
[1673215547730,2.48143407,16976.0,16975.0,0.13464776]
[1673215548480,2.48143407,16976.0,16975.0,0.83464776]
[1673215550920,2.48143407,16976.0,16975.0,0.83456742]
[1673215554584,2.48143407,16976.0,16975.0,0.13456742]
[1673215554854,2.12811791,16976.0,16975.0,0.13456742]
[1673215555119,2.48145265,16976.0,16975.0,0.13456742]
[1673215555377,2.49605991,16976.0,16975.0,0.13456742]
[1673215555637,2.49605991,16976.0,16975.0,0.83456742]
[1673215555957,2.12811791,16976.0,16975.0,0.83456742]
[1673215561519,2.12811791,16976.0,16975.0,0.13456742]
[1673215563025,2.49605991,16976.0,16975.0,0.13456742]
[1673215563557,2.49605991,16976.0,16975.0,0.83456742]
[1673215563784,2.12811791,16976.0,16975.0,0.83456742]
[1673215565821,2.49605991,16976.0,16975.0,0.83456742]
[1673215566308,2.12811791,16976.0,16975.0,0.83456742]
[1673215569321,2.12811791,16976.0,16975.0,0.13456742]
[1673215569568,2.12811791,16976.0,16975.0,0.83456742]
[1673215573911,2.05436845,16976.0,16975.0,0.83456742]
[1673215575233,1.68642645,16976.0,16975.0,0.83445109]
[1673215580035,1.68642645,16976.0,16975.0,0.13445109]
[1673215581127,1.68642645,16976.0,16975.0,0.83445109]
[1673215582404,1.68582852,16976.0,16975.0,0.83445109]
[1673215590881,1.68582852,16976.0,16975.0,0.13445109]
[1673215591885,1.68582852,16976.0,16975.0,0.83445109]
[1673215596666,2.10271194,16976.0,16975.0,0.83445109]
[1673215599819,2.10269539,16976.0,16975.0,0.83445109]
[1673215600894,1.66078224,16976.0,16975.0,0.83445109]
[1673215601640,2.10270609,16976.0,16975.0,0.83445109]
[1673215602206,2.10270586,16976.0,16975.0,0.83445109]
[1673215602462,1.66078224,16976.0,16975.0,0.83445109]
[1673215603758,2.1027133,16976.0,16975.0,0.83445109]
[1673215603990,1.66078224,16976.0,16975.0,0.83445109]
[1673215604757,2.10272154,16976.0,16975.0,0.83445109]
[1673215606324,2.10272154,16976.0,16975.0,0.83434602]
[1673215609150,1.66078224,16976.0,16975.0,0.83434602]
[1673215609415,2.10268756,16976.0,16975.0,0.83434602]
[1673215611096,1.66078224,16976.0,16975.0,0.83434602]
[1673215619573,1.66078224,16976.0,16975.0,0.13434602]
[1673215620762,1.66078224,16976.0,16975.0,0.83434602]
[1673215621009,2.10272769,16976.0,16975.0,0.83434602]
[1673215621511,2.10272769,16976.0,16975.0,0.83079502]
[1673215622059,1.66078224,16976.0,16975.0,0.83079502]
[1673215623395,2.10271197,16976.0,16975.0,0.83079502]
[1673215624411,1.46390209,16976.0,16975.0,0.83079502]
[1673215626727,1.51909578,16976.0,16975.0,0.13079502]
[1673215626988,1.51909578,16976.0,16975.0,0.83079502]
[1673215627245,1.87262709,16976.0,16975.0,0.83079502]
[1673215627806,1.87262709,16976.0,16975.0,1.81731981]
[1673215630483,1.71634166,16976.0,16975.0,1.81731981]
[1673215630745,1.98145638,16976.0,16975.0,1.81731981]
[1673215631001,1.53952665,16976.0,16975.0,1.81731981]
[1673215631567,1.71634166,16976.0,16975.0,1.38036385]
[1673215631851,1.93660468,16976.0,16975.0,1.38036385]
[1673215632102,1.58307337,16976.0,16975.0,1.38036385]
[1673215632611,1.93657101,16976.0,16975.0,1.38036385]
[1673215633424,1.93657101,16976.0,16975.0,1.81536986]
[1673215633914,1.71630799,16976.0,16975.0,1.38036385]
[1673215634393,1.71630799,16976.0,16975.0,1.793554]
[1673215634659,1.71630799,16976.0,16975.0,1.38036385]
[1673215636653,1.6611143,16976.0,16975.0,1.38036385]
[1673215637957,1.92623855,16976.0,16975.0,1.38036385]
[1673215638219,1.48430882,16976.0,16975.0,1.38036385]
[1673215638441,1.92623855,16976.0,16975.0,1.38036385]
[1673215638694,1.48430882,16976.0,16975.0,1.38036385]
[1673215639683,1.53871943,16976.0,16975.0,1.38036385]
[1673215639929,1.53871943,16976.0,16975.0,1.09357201]
[1673215640190,1.71544125,16976.0,16975.0,1.09357201]
[1673215640703,1.36194361,16976.0,16975.0,1.79357201]
[1673215641706,1.307533,16976.0,16975.0,1.79357201]
[1673215642468,1.36194361,16976.0,16975.0,1.79357201]
[1673215645751,1.36194361,16976.0,16975.0,1.38036385]
[1673215646566,1.307533,16976.0,16975.0,1.38036385]
[1673215647121,1.66103064,16976.0,16975.0,1.38036385]
[1673215647374,1.307533,16976.0,16975.0,1.38036385]
[1673215647977,1.66103064,16976.0,16975.0,1.38036385]
[1673215648196,1.48430882,16976.0,16975.0,1.38036385]
[1673215648675,1.66095519,16976.0,16975.0,1.38036385]
[1673215649092,1.30745755,16976.0,16975.0,1.38036385]
[1673215650100,1.66095519,16976.0,16975.0,1.38036385]
[1673215650908,1.48430882,16976.0,16975.0,1.38036385]
[1673215652748,1.88089394,16976.0,16975.0,0.83079502]
[1673215655102,1.5273963,16976.0,16975.0,0.83079502]
[1673215656690,1.58180691,16976.0,16975.0,0.83079502]
[1673215659814,1.93512654,16976.0,16975.0,0.83079502]
[1673215660877,1.93512654,16976.0,16975.0,0.13079502]
[1673215661406,1.93512654,16976.0,16975.0,0.83079502]
[1673215667369,1.93512654,16976.0,16975.0,0.13079502]
[1673215668379,1.93512654,16976.0,16975.0,0.83079502]
[1673215668622,1.88071593,16976.0,16975.0,0.83079502]
[1673215674436,1.88071593,16976.0,16975.0,0.13079502]
[1673215675433,1.88071593,16976.0,16975.0,0.83079502]
[1673215676696,1.5273963,16976.0,16975.0,0.83079502]
[1673215677944,1.5273963,16976.0,16975.0,0.83069481]
[1673215678688,1.5806435,16976.0,16975.0,0.83069481]
[1673215684256,1.93397839,16976.0,16975.0,0.83069481]
[1673215684777,1.5806435,16976.0,16975.0,0.83069481]
[1673215685857,1.93400746,16976.0,16975.0,0.83069481]
[1673215686670,1.5806435,16976.0,16975.0,0.83069481]
[1673215688534,1.93404957,16976.0,16975.0,0.83069481]
[1673215688795,1.5273963,16976.0,16975.0,0.83069481]
[1673215689273,1.88083423,16976.0,16975.0,0.83069481]
[1673215690336,1.88083423,16976.0,16975.0,0.13069481]
[1673215691298,1.88083423,16976.0,16975.0,0.83069481]
[1673215691549,1.88083423,16976.0,16975.0,1.36720672]
[1673215692528,1.88083423,16976.0,16975.0,1.78036091]
[1673215692786,1.66105459,16976.0,16975.0,1.78036091]
[1673215693583,1.71430179,16976.0,16975.0,1.78036091]
[1673215693838,1.93412003,16976.0,16975.0,1.36720672]
[1673215694880,1.71430179,16976.0,16975.0,1.36720672]
[1673215695136,1.53745904,16976.0,16975.0,1.36720672]
[1673215695391,1.97938309,16976.0,16975.0,1.36720672]
[1673215695892,1.53744973,16976.0,16975.0,1.36720672]
[1673215696129,1.71430179,16976.0,16975.0,1.36720672]
[1673215696402,1.97936276,16976.0,16975.0,1.36720672]
[1673215697118,1.53744388,16976.0,16975.0,1.36720672]
[1673215697378,1.97937361,16976.0,16975.0,1.36720672]
[1673215697884,1.71430179,16976.0,16975.0,1.36720672]
[1673215698411,1.97936065,16976.0,16975.0,1.36720672]
[1673215698867,1.97936195,16976.0,16975.0,0.66720672]
[1673215699385,1.97936195,16976.0,16975.0,1.08025003]
[1673215699630,1.97936195,16976.0,16975.0,0.66720672]
[1673215699860,1.97936195,16976.0,16975.0,1.36720672]
[1673215701403,1.71430179,16976.0,16975.0,1.36720672]
[1673215702387,1.97934469,16976.0,16975.0,1.36720672]
[1673215702623,1.71430179,16976.0,16975.0,1.36720672]
[1673215703689,1.97934677,16976.0,16975.0,1.36720672]
[1673215704148,1.53741704,16976.0,16975.0,1.36720672]
[1673215704637,1.53741704,16976.0,16975.0,1.78028508]
[1673215704883,1.36066953,16976.0,16975.0,1.78028508]
[1673215710860,1.36066953,16976.0,16975.0,1.08028508]
[1673215711358,1.36066953,16976.0,16975.0,1.08024588]
[1673215711867,1.36066953,16976.0,16975.0,1.95394588]
[1673215711868,1.09562455,16976.0,16975.0,1.95394588]
[1673215712121,1.09562455,16976.0,16975.0,2.32188788]
[1673215713378,1.09562455,16976.0,16975.0,1.95394588]
[1673215713881,1.36066953,16976.0,16975.0,1.54090672]
[1673215714626,1.53741704,16976.0,16975.0,1.54090672]
[1673215716416,1.36062594,16976.0,16975.0,1.54090672]
[1673215718323,1.36062594,16976.0,16975.0,1.95394074]
[1673215720148,1.36062594,16976.0,16975.0,1.54090672]
[1673215720619,1.36062594,16976.0,16975.0,1.9539402]
[1673215720909,1.36062594,16976.0,16975.0,1.54090672]
[1673215722439,1.36062594,16976.0,16975.0,1.95396887]
[1673215722697,1.36062594,16976.0,16975.0,1.54090672]
[1673215723170,1.36062594,16976.0,16975.0,1.95396307]
[1673215724189,1.36062594,16976.0,16975.0,1.78026307]
[1673215724433,1.36062594,16976.0,16975.0,1.36720672]
[1673215724678,1.36062594,16976.0,16975.0,0.66720672]
[1673215725701,1.36062594,16976.0,16975.0,1.36720672]
[1673215726749,1.53741704,16976.0,16975.0,0.83069481]
[1673215728209,1.97934677,16976.0,16975.0,0.83069481]
[1673215728461,1.97934652,16976.0,16975.0,0.83069481]
[1673215728694,1.97934316,16976.0,16975.0,0.83069481]
[1673215728838,1.53741343,16976.0,16975.0,0.83069481]
[1673215729301,1.97934316,16976.0,16975.0,0.83069481]
[1673215729591,1.53741343,16976.0,16975.0,0.83069481]
[1673215733528,1.53741343,16976.0,16975.0,0.13069481]
[1673215734350,1.53741343,16976.0,16975.0,0.83069481]
[1673215738422,1.71430179,16976.0,16975.0,0.83069481]
[1673215738686,1.9793803,16976.0,16975.0,0.83069481]
[1673215738942,1.71430179,16976.0,16975.0,0.83069481]
[1673215739720,1.97937806,16976.0,16975.0,0.83069481]
[1673215739972,1.71430179,16976.0,16975.0,0.83069481]
[1673215740232,2.96904715,16976.0,16975.0,0.13069481]
[1673215740527,3.46387806,16976.0,16975.0,0.13069481]
[1673215740760,3.39307833,16976.0,16975.0,0.13069481]
[1673215741262,3.95774806,16976.0,16975.0,0.83069481]
[1673215741765,3.51581833,16976.0,16975.0,0.83069481]
[1673215742040,3.95774806,16976.0,16975.0,1.43572913]
[1673215742257,3.51581833,16976.0,16975.0,1.43572913]
[1673215746640,3.95774806,16976.0,16975.0,1.43572913]
[1673215747469,3.95774806,16976.0,16975.0,0.73572913]
[1673215748296,3.95774806,16976.0,16975.0,1.43572913]
[1673215748297,3.69267179,16976.0,16975.0,1.43572913]
[1673215748553,3.91260912,16976.0,16975.0,1.43572913]
[1673215749480,3.69267179,16976.0,16975.0,1.43572913]
[1673215750226,3.91260265,16976.0,16975.0,1.43572913]
[1673215750465,3.69267179,16976.0,16975.0,1.43572913]
[1673215750989,3.95774585,16976.0,16975.0,1.43572913]
[1673215751061,3.69267179,16976.0,16975.0,1.43572913]
[1673215753206,3.91266958,16976.0,16975.0,1.43572913]
[1673215754326,3.91266958,16976.0,16975.0,0.73572913]
[1673215754798,3.91266958,16976.0,16975.0,1.43572913]
[1673215758607,3.69267179,16976.0,16975.0,1.43572913]
[1673215760790,3.69267179,16976.0,16975.0,0.73572913]
[1673215761736,3.69267179,16976.0,16975.0,1.43572913]
[1673215762001,3.91297073,16976.0,16975.0,1.43572913]
[1673215763956,3.69267179,16976.0,16975.0,1.43572913]
[1673215764433,3.69267179,16976.0,16975.0,0.83069481]
[1673215764434,3.56029578,16976.0,16975.0,0.83069481]
[1673215768589,3.91372994,16976.0,16975.0,0.83069481]
[1673215771029,3.91372994,16976.0,16975.0,0.13069481]
[1673215772097,3.91372994,16976.0,16975.0,0.83069481]
[1673215780686,3.69266802,16976.0,16975.0,0.83069481]
[1673215782653,3.95777939,16976.0,16975.0,0.83069481]
[1673215782908,3.69266802,16976.0,16975.0,0.83069481]
[1673215783602,3.95778812,16976.0,16975.0,0.83069481]
[1673215783866,3.69266802,16976.0,16975.0,0.83069481]
[1673215786121,3.95779134,16976.0,16975.0,0.83069481]
[1673215786622,3.95779134,16976.0,16975.0,0.13069481]
[1673215787091,3.51586161,16976.0,16975.0,0.13069481]
[1673215787766,3.51586161,16976.0,16975.0,0.83069481]
[1673215797957,3.6925811,16976.0,16975.0,0.83069481]
[1673215798228,3.51586161,16976.0,16975.0,0.83069481]
[1673215800128,3.69257374,16976.0,16975.0,0.83069481]
[1673215800456,3.51586161,16976.0,16975.0,0.83069481]
[1673215800668,3.51586161,16976.0,16975.0,0.13069481]
[1673215800897,3.69257224,16976.0,16975.0,0.13069481]
[1673215801164,3.6925737,16976.0,16975.0,0.13069481]
[1673215801420,3.6873097,16976.0,16975.0,0.13069481]
[1673215801743,3.6873097,16976.0,16975.0,1.33069481]
[1673215801744,3.68731084,16976.0,16975.0,1.33069481]
[1673215801943,3.51059761,16976.0,16975.0,1.33069481]
[1673215802191,3.687311,16976.0,16975.0,1.33069481]
[1673215802453,3.33387684,16976.0,16975.0,1.33069481]
[1673215802704,3.687311,16976.0,16975.0,1.33069481]
[1673215803256,3.33387684,16976.0,16975.0,1.33069481]
[1673215803480,3.687311,16976.0,16975.0,1.33069481]
[1673215803725,3.33387684,16976.0,16975.0,1.33069481]
[1673215804223,3.687311,16976.0,16975.0,1.33069481]
[1673215804705,3.33387684,16976.0,16975.0,1.33069481]
[1673215806060,3.33387684,16976.0,16975.0,0.83069481]
[1673215807703,3.33387684,16976.0,16975.0,0.13069481]
[1673215807957,3.51059761,16976.0,16975.0,0.13069481]
[1673215808660,3.51059761,16976.0,16975.0,0.83069481]
[1673215814628,3.51059761,16976.0,16975.0,0.13069481]
[1673215815731,3.51059761,16976.0,16975.0,0.83069481]
[1673215821680,3.51059761,16976.0,16975.0,0.13069481]
[1673215822716,3.51059761,16976.0,16975.0,0.83069481]
[1673215823803,3.95252734,16976.0,16975.0,0.83069481]
[1673215824057,3.51059761,16976.0,16975.0,0.83069481]
[1673215828581,3.95252734,16976.0,16975.0,0.83069481]
[1673215828836,3.95252734,16976.0,16975.0,0.13069481]
[1673215829088,3.68740402,16976.0,16975.0,0.13069481]
[1673215829826,3.68740402,16976.0,16975.0,0.83069481]
[1673215831140,3.90688907,16976.0,16975.0,0.83069481]
[1673215831724,3.90688907,16976.0,16975.0,0.83061303]
[1673215832540,3.68740402,16976.0,16975.0,0.83061303]
[1673215832800,3.70541524,16976.0,16975.0,0.83061303]
[1673215834058,4.3121461,16976.0,16975.0,0.83061303]
[1673215835325,4.66563931,16976.0,16975.0,0.83061303]
[1673215835557,4.66563746,16976.0,16975.0,0.83061303]
[1673215838016,4.3121461,16976.0,16975.0,0.83061303]
[1673215838275,4.31202362,16976.0,16975.0,0.83061303]
[1673215843526,4.66533979,16976.0,16975.0,0.83061303]
[1673215843791,4.66533979,16976.0,16975.0,0.13061303]
[1673215844291,4.66533979,16976.0,16975.0,0.83061303]
[1673215844546,4.31202362,16976.0,16975.0,0.83061303]
[1673215846541,4.66532085,16976.0,16975.0,0.83061303]
[1673215849576,4.44545136,16976.0,16975.0,0.83061303]
[1673215849838,4.66619274,16976.0,16975.0,0.83061303]
[1673215850342,4.66619274,16976.0,16975.0,0.13061303]
[1673215851296,4.66619274,16976.0,16975.0,0.83061303]
[1673215854635,4.31289551,16976.0,16975.0,0.83061303]
[1673215854884,4.66616054,16976.0,16975.0,0.83061303]
[1673215855139,4.31289551,16976.0,16975.0,0.83061303]
[1673215857415,4.31289551,16976.0,16975.0,0.13061303]
[1673215858446,4.31289551,16976.0,16975.0,0.83061303]
[1673215862562,4.66610776,16976.0,16975.0,0.83061303]
[1673215864334,4.31289551,16976.0,16975.0,0.13061303]
[1673215865364,4.31289551,16976.0,16975.0,0.83061303]
[1673215871297,4.31289551,16976.0,16975.0,0.13061303]
[1673215872331,4.31289551,16976.0,16975.0,0.83061303]
[1673215873834,4.31279714,16976.0,16975.0,0.83061303]
[1673215878277,4.31279714,16976.0,16975.0,0.13061303]
[1673215879356,4.31279714,16976.0,16975.0,0.83061303]
[1673215889121,4.31279714,16976.0,16975.0,0.13061303]
[1673215890134,4.31279714,16976.0,16975.0,0.83061303]
[1673215896112,4.31279714,16976.0,16975.0,0.13061303]
[1673215897187,4.31279714,16976.0,16975.0,0.83061303]
[1673215897438,4.31279714,16976.0,16975.0,0.8304971]
[1673215901351,3.87098989,16976.0,16975.0,0.8304971]
[1673215903047,3.87098989,16976.0,16975.0,0.1304971]
[1673215904251,3.87098989,16976.0,16975.0,0.8304971]
[1673215910237,3.87098989,16976.0,16975.0,0.1304971]
[1673215911237,3.87098989,16976.0,16975.0,0.8304971]
[1673215918252,4.31240688,16976.0,16975.0,0.8304971]
[1673215918493,4.31241177,16976.0,16975.0,0.8304971]
[1673215918728,3.87098989,16976.0,16975.0,0.8304971]
[1673215919983,4.3123998,16976.0,16975.0,0.8304971]
[1673215920226,3.87098989,16976.0,16975.0,0.1304971]
[1673215920477,4.31239721,16976.0,16975.0,0.1304971]
[1673215921218,4.31239721,16976.0,16975.0,0.8304971]
[1673215921456,4.3122968,16976.0,16975.0,0.8304971]
[1673215931445,4.3122968,16976.0,16975.0,0.1304971]
[1673215932262,4.3122968,16976.0,16975.0,0.8304971]
[1673215934723,4.66548737,16976.0,16975.0,0.8304971]
[1673215935697,4.3122968,16976.0,16975.0,0.8304971]
[1673215936402,4.665482,16976.0,16975.0,0.8304971]
[1673215937747,4.3122968,16976.0,16975.0,0.8304971]
[1673215938540,4.3122968,16976.0,16975.0,0.1304971]
[1673215939332,4.3122968,16976.0,16975.0,0.8304971]
[1673215942877,4.3002968,16976.0,16975.0,0.8304971]
[1673215943353,4.65344761,16976.0,16975.0,0.8304971]
[1673215945354,4.65344761,16976.0,16975.0,0.1304971]
[1673215946557,4.65344761,16976.0,16975.0,0.8304971]
[1673215947550,4.43270623,16976.0,16975.0,0.8304971]
[1673215948319,4.69754769,16976.0,16975.0,0.8304971]
[1673215949081,4.25614037,16976.0,16975.0,0.8304971]
[1673215952431,4.25611073,16976.0,16975.0,0.8304971]
[1673215952948,4.43270623,16976.0,16975.0,0.8304971]
[1673215953197,4.65425371,16976.0,16975.0,0.8304971]
[1673215954186,4.43270623,16976.0,16975.0,0.8304971]
[1673215954432,4.43270623,16976.0,16975.0,0.1304971]
[1673215954866,4.65426026,16976.0,16975.0,0.1304971]
[1673215955383,4.65426026,16976.0,16975.0,0.8304971]
[1673215961405,4.43270623,16976.0,16975.0,0.1304971]
[1673215962395,4.43270623,16976.0,16975.0,0.8304971]
[1673215964395,4.69757322,16976.0,16975.0,0.8304971]
[1673215964635,4.69757249,16976.0,16975.0,0.8304971]
[1673215966530,4.43270623,16976.0,16975.0,0.8304971]
[1673215967038,4.69758037,16976.0,16975.0,0.8304971]
[1673215967287,4.25617305,16976.0,16975.0,0.8304971]
[1673215967539,4.69758037,16976.0,16975.0,0.83040155]
[1673215967900,4.43270623,16976.0,16975.0,0.83040155]
[1673215968429,4.43270623,16976.0,16975.0,0.13040155]
[1673215969154,4.65350042,16976.0,16975.0,0.13040155]
[1673215969413,4.65350042,16976.0,16975.0,0.83040155]
[1673215969945,4.43270623,16976.0,16975.0,0.83040155]
[1673215971203,4.65346417,16976.0,16975.0,0.83040155]
[1673215971455,4.30031336,16976.0,16975.0,0.83040155]
[1673215974442,4.65347381,16976.0,16975.0,0.83040155]
[1673215974664,4.30031336,16976.0,16975.0,0.83040155]
[1673215974932,4.65346866,16976.0,16975.0,0.83040155]
[1673215975177,4.30031336,16976.0,16975.0,0.83040155]
[1673215975673,4.65346626,16976.0,16975.0,0.83040155]
[1673215975927,4.30031336,16976.0,16975.0,0.83040155]
[1673215979292,4.65346702,16976.0,16975.0,0.83040155]
[1673215981545,4.30031336,16976.0,16975.0,0.83040155]
[1673215983319,4.30031336,16976.0,16975.0,0.13040155]
[1673215984337,4.30031336,16976.0,16975.0,0.83040155]
[1673215987053,4.65347124,16976.0,16975.0,0.83040155]
[1673215987293,4.30031336,16976.0,16975.0,0.83040155]
[1673215988462,4.65347757,16976.0,16975.0,0.83040155]
[1673215988955,4.00388204,16976.0,16975.0,0.83040155]
[1673215989207,4.03041041,16976.0,16975.0,0.83040155]
[1673215989922,4.03041358,16976.0,16975.0,0.83040155]
[1673215993987,3.97716638,16976.0,16975.0,0.83040155]
[1673215995001,4.02214871,16976.0,16975.0,0.13040155]
[1673215995512,3.77485923,16976.0,16975.0,0.13040155]
[1673215996026,3.59833561,16976.0,16975.0,0.83040155]
[1673215996788,3.59833561,16976.0,16975.0,1.50933575]
[1673215998868,3.59833561,16976.0,16975.0,0.83040155]